bitfinex/quotes_BTCUSD_20260101
["timestamp","ask_amount","ask_price","bid_price","bid_amount"]
[1767287840633,0.0721183,88121.0,88120.0,4.1e-07]
[1767287841065,0.0721183,88121.0,88101.0,0.0001466]
[1767287841066,0.01135009,88105.0,88101.0,0.0001466]
[1767287841260,0.01135009,88105.0,88092.0,0.0001466]
[1767287841261,0.06810266,88103.0,88097.0,0.01136]
[1767287841475,0.04757367,88102.0,88097.0,0.01140102]
[1767287842525,0.04757367,88102.0,88097.0,9.202e-05]
[1767287848360,0.04702467,88102.0,88097.0,9.202e-05]
[1767287849228,0.0002,88107.0,88097.0,0.0143713]
[1767287849432,0.0002,88107.0,88098.0,0.01135099]
[1767287850266,0.0002,88107.0,88099.0,0.01135086]
[1767287850503,0.0002,88107.0,88100.0,0.01135073]
[1767287850705,0.0002,88107.0,88099.0,0.01135086]
[1767287850855,0.0002,88107.0,88098.0,0.01135099]
[1767287851062,0.0002,88107.0,88099.0,0.01135086]
[1767287851258,0.0002,88107.0,88100.0,0.01135073]
[1767287851460,0.0002,88107.0,88101.0,0.0113506]
[1767287851681,0.0002,88107.0,88102.0,0.01135048]
[1767287852799,0.0002,88107.0,88101.0,0.0113506]
[1767287853003,0.0002,88107.0,88100.0,0.01135073]
[1767287853434,0.0002,88107.0,88101.0,0.0113506]
[1767287853587,0.0002,88107.0,88100.0,0.01135073]
[1767287854203,0.0002,88107.0,88101.0,0.0113506]
[1767287854512,0.0002,88107.0,88099.0,0.01135086]
[1767287854662,0.0002,88107.0,88100.0,0.01135073]
[1767287855668,0.0002,88107.0,88099.0,0.01135086]
[1767287856091,0.0002,88107.0,87811.0,100.0]
[1767287856092,0.04706968,88120.0,88104.0,0.01427928]
[1767287856287,0.00051519,88122.0,88097.0,0.66985964]
[1767287856288,0.00051519,88122.0,88110.0,0.44274605]
[1767287856461,0.02448856,88121.0,88108.0,0.01136]
[1767287856667,0.00051519,88122.0,88108.0,0.01136]
[1767287856668,0.04758487,88122.0,88108.0,0.01136]
[1767287856910,0.07155824,88121.0,88108.0,0.01136]
[1767287857081,0.04706968,88121.0,88108.0,0.01136]
[1767287858322,0.02449428,88120.0,88108.0,0.01136]
[1767287858762,0.07156396,88120.0,88108.0,0.01136]
[1767287858988,0.04706968,88120.0,88108.0,0.01136]
[1767287863219,0.02450903,88119.0,88108.0,0.01136]
[1767287871504,0.07157871,88119.0,88108.0,0.01136]
[1767287871702,0.02450903,88118.0,88108.0,0.01136]
[1767287871908,0.07157871,88118.0,88108.0,0.01136]
[1767287872091,0.02450903,88117.0,88108.0,0.01136]
[1767287879426,0.01065218,88116.0,88108.0,0.01136]
[1767287879612,0.02450903,88115.0,88108.0,0.01136]
[1767287879749,0.02450903,88114.0,88108.0,0.01136]
[1767287880052,0.04706968,88118.0,88108.0,0.0227097]
[1767287880251,0.03519588,88117.0,88108.0,0.01136]
[1767287880451,0.0245437,88116.0,88108.0,0.0227097]
[1767287880658,0.0245437,88115.0,88108.0,0.01136]
[1767287880937,0.04706968,88118.0,88108.0,0.01136]
[1767287881122,0.03519639,88117.0,88108.0,0.01136]
[1767287881281,0.0245437,88116.0,88108.0,0.01136]
[1767287881489,0.0245437,88115.0,88108.0,0.01136]
[1767287881693,0.0245437,88114.0,88108.0,0.01136]
[1767287881904,0.04706968,88118.0,88108.0,0.01136]
[1767287882103,0.03519855,88117.0,88108.0,0.0227097]
[1767287882290,0.02454522,88116.0,88108.0,0.01136]
[1767287882495,0.02454522,88115.0,88108.0,0.01136]
[1767287882715,0.02454522,88114.0,88108.0,0.01136]
[1767287882942,0.04706968,88118.0,88108.0,0.01136]
[1767287883110,0.03520005,88117.0,88108.0,0.0227097]
[1767287883527,0.02454625,88116.0,88108.0,0.0227097]
[1767287883737,0.02454625,88115.0,88108.0,0.0227097]
[1767287883929,0.02454625,88114.0,88108.0,0.0227097]
[1767287884136,0.04706968,88118.0,88108.0,0.0227097]
[1767287884343,0.03520401,88117.0,88108.0,0.0227097]
[1767287884546,0.03520401,88116.0,88108.0,0.0227097]
[1767287884694,0.02454948,88115.0,88108.0,0.01136]
[1767287884935,0.02454948,88114.0,88108.0,0.01136]
[1767287885135,0.04706968,88118.0,88108.0,0.01136]
[1767287885354,0.03520697,88117.0,88108.0,0.01136]
[1767287885561,0.03520697,88116.0,88108.0,0.01136]
[1767287885769,0.04706968,88118.0,88108.0,0.01136]
[1767287885770,0.02455159,88115.0,88108.0,0.01136]
[1767287885965,0.02455159,88114.0,88108.0,0.01136]
[1767287886173,0.02455159,88113.0,88108.0,0.01136]
[1767287886372,0.04706968,88118.0,88108.0,0.01136]
[1767287886574,0.03521065,88117.0,88108.0,0.01136]
[1767287886751,0.03521065,88116.0,88108.0,0.01136]
[1767287886980,0.03521065,88115.0,88108.0,0.010811]
[1767287887334,0.07157131,88114.0,88108.0,0.010811]
[1767287887537,0.0470177,88112.0,88108.0,0.010811]
[1767287895229,0.0470177,88112.0,88106.0,0.01136]
[1767287898100,0.0470177,88112.0,88101.0,0.0113506]
[1767287898301,0.0470177,88112.0,88106.0,0.01136]
[1767287915482,0.0470177,88112.0,88100.0,0.45426409]
[1767287915790,0.0470177,88112.0,88105.0,0.01136]
[1767287917305,0.02455801,88111.0,88105.0,0.01136]
[1767287918332,0.0470177,88112.0,88105.0,0.01136]
[1767287918937,0.02455652,88111.0,88105.0,0.01136]
[1767287919372,0.0470177,88112.0,88105.0,0.01136]
[1767287920382,0.0470177,88112.0,88105.0,0.00660986]
[1767287921973,0.0470177,88112.0,88103.0,0.01136]
[1767287922201,0.04728535,88110.0,88103.0,0.01136]
[1767287922442,0.04728535,88108.0,88103.0,0.01136]
[1767287923224,0.04728535,88117.0,88108.0,0.000549]
[1767287923569,0.04728535,88115.0,88106.0,0.01134996]
[1767287923698,0.04728535,88113.0,88106.0,0.01134996]
[1767287924051,0.02455189,88112.0,88106.0,0.01134996]
[1767287924350,0.02455189,88112.0,88105.0,0.01135009]
[1767287924900,0.07183724,88111.0,88104.0,0.01135022]
[1767287925104,0.04728535,88111.0,88105.0,0.01135009]
[1767287925541,0.04728535,88111.0,88104.0,0.01135022]
[1767287927584,0.04728535,88111.0,88103.0,0.06810208]
[1767287927818,0.01136,88115.0,88106.0,0.05674982]
[1767287927987,0.03520607,88114.0,88107.0,0.01134983]
[1767287928292,0.03520607,88113.0,88107.0,0.01134983]
[1767287928445,0.04728535,88111.0,88107.0,0.01134983]
[1767287928663,0.04728535,88111.0,88106.0,0.01134996]
[1767287928989,0.04728535,88111.0,88107.0,0.01134983]
[1767287929141,0.04728535,88111.0,88106.0,0.01134996]
[1767287929586,0.04728535,88111.0,88107.0,0.01134983]
[1767287929790,0.04728535,88111.0,88106.0,0.01134996]
[1767287930506,0.04728535,88111.0,88107.0,0.01134983]
[1767287931480,0.04728535,88111.0,88106.0,0.01134996]
[1767287932016,0.04728535,88111.0,88105.0,0.01080009]
[1767287932766,0.04728535,88111.0,88104.0,0.01135022]
[1767287932980,0.04728535,88111.0,88105.0,0.01135009]
[1767287933482,0.04728535,88111.0,88104.0,0.01135022]
[1767287933873,0.04728535,88111.0,88103.0,0.01135035]
[1767287934072,0.04728535,88111.0,88104.0,0.01135022]
[1767287935274,0.04728535,88111.0,88106.0,0.01134996]
[1767287936644,0.04728535,88111.0,88107.0,0.01134983]
[1767287939260,0.04728535,88111.0,88106.0,0.01134996]
[1767287940062,0.04728535,88111.0,88105.0,0.01135009]
[1767287940264,0.04728535,88111.0,88106.0,0.01134996]
[1767287940752,0.04728535,88111.0,88105.0,0.01135009]
[1767287941393,0.04728535,88111.0,88107.0,0.01134983]
[1767287941591,0.04728535,88111.0,88105.0,0.01135009]
[1767287941881,0.04728535,88111.0,88106.0,0.01134996]
[1767287942479,0.04728535,88111.0,88105.0,0.01135009]
[1767287942619,0.01136,88115.0,88108.0,0.0113497]
[1767287942826,0.0245508,88114.0,88107.0,0.01134983]
[1767287943068,0.07375361,88114.0,88107.0,0.01134983]
[1767287943277,0.0245508,88113.0,88106.0,0.01134996]
[1767287943585,0.0245508,88113.0,88107.0,0.01134983]
[1767287943716,0.0245508,88113.0,88106.0,0.01134996]
[1767287944157,0.0245508,88113.0,88107.0,0.01134983]
[1767287944874,0.0245508,88113.0,88105.0,0.01135009]
[1767287945115,0.04920281,88112.0,88105.0,0.01135009]
[1767287945503,0.04920281,88112.0,88106.0,0.01134996]
[1767287946737,0.04920281,88112.0,88107.0,0.01134983]
[1767287947427,0.04920281,88112.0,88108.0,0.0113497]
[1767287948023,0.04920281,88112.0,88107.0,0.01134983]
[1767287948646,0.04920281,88112.0,88106.0,0.01134996]
[1767287949040,0.04920281,88112.0,88107.0,0.01134983]
[1767287949447,0.04920281,88112.0,88106.0,0.01134996]
[1767287949840,0.04920281,88112.0,88107.0,0.01134983]
[1767287951453,0.04920281,88112.0,88106.0,0.01134996]
[1767287952774,0.04920281,88112.0,88107.0,0.01134983]
[1767287953216,0.04920281,88112.0,88108.0,0.0113497]
[1767287953361,0.04920281,88112.0,88107.0,0.01134983]
[1767287953560,0.04865381,88112.0,88108.0,0.0113497]
[1767287955071,0.04865381,88112.0,88109.0,0.01134957]
[1767287955661,0.04865381,88112.0,88108.0,0.0113497]
[1767287955897,0.04865381,88112.0,88107.0,0.01134983]
[1767287956691,0.04865381,88112.0,88108.0,0.0113497]
[1767287956901,0.04865381,88112.0,88107.0,0.01134983]
[1767287957249,0.04865381,88112.0,88108.0,0.0113497]
[1767287958445,0.04865381,88112.0,88107.0,0.01134983]
[1767287959411,0.07376126,88111.0,88107.0,0.01134983]
[1767287959618,0.04920281,88111.0,88107.0,0.01134983]
[1767287959813,0.04920281,88111.0,88106.0,0.01134996]
[1767287960015,0.01136,88115.0,88107.0,0.01134983]
[1767287960364,0.03521749,88114.0,88107.0,0.01134983]
[1767287960560,0.02455845,88113.0,88108.0,0.0113497]
[1767287960761,0.01136,88115.0,88107.0,0.01134983]
[1767287960762,0.02455845,88112.0,88107.0,0.01134983]
[1767287960960,0.02455845,88111.0,88107.0,0.01134983]
[1767287961284,0.02455845,88110.0,88107.0,0.01134983]
[1767287961481,0.01136,88115.0,88107.0,0.01134983]
[1767287961694,0.0352161,88114.0,88107.0,0.01134983]
[1767287961835,0.0352161,88113.0,88107.0,0.01134983]
[1767287962036,0.02455749,88112.0,88106.0,0.01134996]
[1767287962258,0.02455749,88111.0,88106.0,0.01134996]
[1767287962460,0.01136,88115.0,88106.0,0.01134996]
[1767287962666,0.03521528,88114.0,88106.0,0.01134996]
[1767287962866,0.03521528,88113.0,88105.0,0.06513014]
[1767287963080,0.02455692,88112.0,88107.0,0.01134983]
[1767287963287,0.02455692,88111.0,88107.0,0.01134983]
[1767287963465,0.01136,88115.0,88106.0,0.01134996]
[1767287963667,0.03521466,88114.0,88106.0,0.01134996]
[1767287963864,0.03521466,88113.0,88105.0,0.00838015]
[1767287964068,0.02455649,88112.0,88106.0,0.01134996]
[1767287964347,0.02455649,88111.0,88105.0,0.00838015]
[1767287964552,0.04712114,88113.0,88106.0,0.01134996]
[1767287964755,0.02455614,88112.0,88106.0,0.01134996]
[1767287966535,0.02455614,88112.0,88105.0,0.00838015]
[1767287966744,0.02455614,88112.0,88105.0,0.01135009]
[1767287967274,0.02455614,88112.0,88104.0,0.01135022]
[1767287967475,0.02455614,88112.0,88105.0,0.01135009]
[1767287968366,0.02455614,88111.0,88105.0,0.01135009]
[1767287968567,0.04712114,88113.0,88106.0,0.01134996]
[1767287968769,0.0245553,88112.0,88105.0,0.01135009]
[1767287969020,0.0245553,88112.0,88106.0,0.01134996]
[1767287969534,0.0245553,88112.0,88105.0,0.01135009]
[1767287970760,0.0245553,88112.0,88106.0,0.01134996]
[1767287971377,0.0245553,88112.0,88105.0,0.01135009]
[1767287971533,0.0245553,88112.0,88106.0,0.01134996]
[1767287972447,0.0245553,88112.0,88107.0,0.01134983]
[1767287972635,0.04712114,88111.0,88106.0,0.01134996]
[1767287972832,0.04712114,88111.0,88107.0,0.01134983]
[1767287975375,0.04712114,88111.0,88106.0,0.01134996]
[1767287978603,0.04712114,88111.0,88105.0,0.01135009]
[1767287979429,0.02455534,88110.0,88106.0,0.01134996]
[1767287979808,0.07167648,88110.0,88105.0,0.01135009]
[1767287980049,0.04712114,88110.0,88106.0,0.01134996]
[1767287981915,0.04712114,88110.0,88105.0,0.01135009]
[1767287982658,0.04712114,88110.0,88106.0,0.01134996]
[1767287983089,0.04712114,88110.0,88105.0,0.01135009]
[1767287983945,0.04712114,88110.0,88106.0,0.01134996]
[1767287985150,0.04712114,88110.0,88107.0,0.01134983]
[1767287986107,0.04657114,88110.0,88107.0,0.01134983]
[1767287988161,0.05848114,88115.0,88109.0,0.01134957]
[1767287988358,0.04712114,88113.0,88109.0,0.01134957]
[1767287988679,0.07167627,88112.0,88109.0,0.01134957]
[1767287988875,0.02455513,88111.0,88109.0,0.01134957]
[1767287989077,0.02455513,88111.0,88108.0,0.0113497]
[1767287993861,0.02455513,88111.0,88107.0,0.01134983]
[1767287994072,0.000549,88108.0,88107.0,0.01134983]
[1767287994415,0.04712114,88112.0,88109.0,0.01134957]
[1767287994665,0.0245555,88111.0,88109.0,0.01134957]
[1767287994865,0.0245555,88111.0,88108.0,0.0113497]
[1767287996487,0.0245555,88111.0,88108.0,0.06809814]
[1767287997110,0.0245555,88111.0,88108.0,0.0113497]
[1767287997344,0.0481549,88110.0,88108.0,0.0102507]
[1767287997710,0.0481549,88110.0,88107.0,0.01134983]
[1767288000043,0.0595149,88115.0,88110.0,0.01189844]
[1767288000246,0.0481549,88113.0,88110.0,0.000549]
[1767288000425,0.0245555,88112.0,88110.0,0.000549]
[1767288000630,0.0245555,88112.0,88109.0,0.01134957]
[1767288000831,0.0245555,88112.0,88110.0,0.05674677]
[1767288000997,0.0240055,88112.0,88110.0,0.05674677]
[1767288001199,0.0595149,88115.0,88112.0,0.01134919]
[1767288001393,0.05881264,88114.0,88111.0,0.01134932]
[1767288001641,0.01065774,88113.0,88111.0,0.01134932]
[1767288002088,0.01065774,88113.0,88110.0,0.01134944]
[1767288002248,0.042037,88119.0,88111.0,0.01134932]
[1767288002443,0.030677,88119.0,88111.0,0.01134932]
[1767288002644,0.042037,88120.0,88112.0,0.01134919]
[1767288003997,0.042037,88120.0,88113.0,0.01134906]
[1767288004204,0.042037,88120.0,88111.0,0.01134932]
[1767288004363,0.042037,88120.0,88112.0,0.01134919]
[1767288005053,0.042037,88120.0,88111.0,0.01134932]
[1767288005462,0.042037,88120.0,88112.0,0.01134919]
[1767288005675,0.042037,88120.0,88111.0,0.01134932]
[1767288005875,0.042037,88120.0,88112.0,0.01134919]
[1767288006056,0.042037,88120.0,88111.0,0.01134932]
[1767288007220,0.0481549,88119.0,88111.0,0.01134932]
[1767288008266,0.0481549,88119.0,88110.0,0.01134944]
[1767288008910,0.0481549,88119.0,88112.0,0.01134919]
[1767288010298,0.0481549,88119.0,88113.0,0.01134906]
[1767288010755,0.0481549,88119.0,88114.0,0.01134893]
[1767288010911,0.0481549,88119.0,88113.0,0.01134906]
[1767288011254,0.042037,88120.0,88115.0,0.0113488]
[1767288011394,0.01136,88120.0,88113.0,0.01134906]
[1767288011610,0.01136,88120.0,88114.0,0.01134893]
[1767288012432,0.01136,88120.0,88115.0,0.0113488]
[1767288012670,0.0595149,88120.0,88112.0,0.01134919]
[1767288012807,0.0595149,88120.0,88113.0,0.01134906]
[1767288012998,0.02455374,88119.0,88114.0,0.01134893]
[1767288013198,0.07270864,88119.0,88113.0,0.01134906]
[1767288013397,0.02455374,88118.0,88113.0,0.01134906]
[1767288014213,0.01065669,88117.0,88113.0,0.01134906]
[1767288014429,0.03521043,88116.0,88113.0,0.01134906]
[1767288014610,0.03521043,88115.0,88112.0,0.01134919]
[1767288014809,0.02455374,88114.0,88112.0,0.01134919]
[1767288015021,0.0481549,88119.0,88113.0,0.01134906]
[1767288015244,0.04656888,88118.0,88113.0,0.01134906]
[1767288015425,0.03520888,88117.0,88113.0,0.01134906]
[1767288015627,0.03520888,88116.0,88113.0,0.01134906]
[1767288015850,0.03520888,88115.0,88113.0,0.01134906]
[1767288016017,0.02455238,88114.0,88113.0,0.01134906]
[1767288016422,0.02455238,88117.0,88113.0,0.01134906]
[1767288016622,0.03520862,88116.0,88113.0,0.01134906]
[1767288016847,0.03520862,88115.0,88113.0,0.01134906]
[1767288017060,0.02455238,88114.0,88113.0,0.01134906]
[1767288017255,0.01136,88118.0,88113.0,0.01134906]
[1767288017486,0.03520805,88117.0,88113.0,0.01134906]
[1767288017653,0.03520805,88116.0,88113.0,0.01134906]
[1767288017993,0.03520805,88115.0,88113.0,0.01134906]
[1767288018214,0.0245519,88114.0,88113.0,0.01134906]
[1767288018351,0.01136,88118.0,88114.0,0.01134893]
[1767288018556,0.03520777,88117.0,88113.0,0.01134906]
[1767288018754,0.03520777,88116.0,88113.0,0.01134906]
[1767288018962,0.02455171,88115.0,88113.0,0.01134906]
[1767288019176,0.01136,88118.0,88114.0,0.01134893]
[1767288019426,0.03520748,88117.0,88114.0,0.01134893]
[1767288019623,0.03520748,88116.0,88114.0,0.01134893]
[1767288019833,0.02455141,88115.0,88114.0,0.01134893]
[1767288020109,0.02455141,88119.0,88113.0,0.01134906]
[1767288020254,0.03520736,88118.0,88113.0,0.01134906]
[1767288020453,0.03520736,88117.0,88110.0,0.05674722]
[1767288020672,0.03520736,88116.0,88112.0,0.01134919]
[1767288020878,0.02455141,88115.0,88113.0,0.01134906]
[1767288021194,0.01136,88120.0,88114.0,0.01134893]
[1767288021394,0.03520697,88119.0,88114.0,0.01134893]
[1767288021591,0.03520697,88118.0,88113.0,0.01134906]
[1767288021837,0.03520697,88117.0,88113.0,0.01134906]
[1767288022091,0.03520697,88116.0,88113.0,0.01134906]
[1767288022284,0.02455115,88115.0,88113.0,0.01134906]
[1767288022450,0.04535839,88119.0,88114.0,0.01134893]
[1767288022654,0.03520698,88118.0,88114.0,0.01134893]
[1767288022857,0.03520698,88117.0,88114.0,0.01134893]
[1767288023101,0.03520698,88116.0,88114.0,0.01134893]
[1767288023251,0.02455114,88115.0,88114.0,0.01134893]
[1767288023452,0.02455085,88118.0,88115.0,0.0113488]
[1767288023639,0.01065551,88117.0,88114.0,0.01134893]
[1767288023971,0.02455085,88116.0,88114.0,0.01134893]
[1767288024184,0.02455085,88115.0,88114.0,0.01134893]
[1767288024683,0.00051171,88121.0,88114.0,0.01134893]
[1767288024858,0.0001466,88123.0,88122.0,0.05673952]
[1767288025056,1e-08,88124.0,88122.0,0.05673952]
[1767288032824,0.04611292,88139.0,88131.0,0.01134674]
[1767288033027,0.05747292,88139.0,88134.0,0.01134635]
[1767288033232,0.05747292,88139.0,88133.0,0.01134648]
[1767288033432,0.05747292,88139.0,88132.0,0.01134661]
[1767288033731,0.05747292,88139.0,88133.0,0.01134648]
[1767288034075,0.05747292,88139.0,88132.0,0.01134661]
[1767288034323,0.05747292,88139.0,88133.0,0.01134648]
[1767288035319,0.05747292,88139.0,88132.0,0.01134661]
[1767288035520,0.05747292,88139.0,88133.0,0.01134648]
[1767288037002,0.05747292,88139.0,88132.0,0.01134661]
[1767288037200,0.05747292,88139.0,88133.0,0.01134648]
[1767288037971,0.05747292,88139.0,88132.0,0.01134661]
[1767288038882,0.05747292,88139.0,88133.0,0.01134648]
[1767288040211,0.05747292,88139.0,88132.0,0.01134661]
[1767288041434,0.05747292,88139.0,88133.0,0.01134648]
[1767288042073,0.05747292,88139.0,88132.0,0.01134661]
[1767288042553,0.05747292,88139.0,88134.0,0.01134635]
[1767288042759,0.05747292,88139.0,88133.0,0.01134648]
[1767288042980,0.05747292,88139.0,88134.0,0.01134635]
[1767288043770,0.05747292,88139.0,88135.0,0.01134623]
[1767288043968,0.05747292,88139.0,88134.0,0.01134635]
[1767288044172,0.05747292,88139.0,88132.0,0.05477204]
[1767288044514,0.05747292,88139.0,88134.0,0.01134635]
[1767288045119,0.05747292,88139.0,88133.0,0.01134648]
[1767288045410,0.05747292,88139.0,88134.0,0.01134635]
[1767288046765,0.0001466,88149.0,88134.0,0.01134635]
[1767288046766,0.0002,88171.0,88161.0,0.01134288]
[1767288046928,0.0002,88184.0,88180.0,0.00794762]
[1767288047134,1e-08,88190.0,88185.0,0.01133979]
[1767288047356,0.04611292,88203.0,88185.0,0.01133979]
[1767288047357,0.04611292,88203.0,88188.0,0.05669705]
[1767288047560,0.04611292,88203.0,88195.0,0.01133851]
[1767288047702,0.0001412,88209.0,88194.0,0.01133863]
[1767288047907,0.0001412,88209.0,88197.0,0.01133825]
[1767288048116,0.0001412,88209.0,88197.0,0.02273825]
[1767288048349,0.0001412,88209.0,88195.0,0.05669255]
[1767288048350,0.0001412,88209.0,88203.0,0.01133748]
[1767288048529,0.04891292,88220.0,88206.0,0.01133709]
[1767288048727,0.04891292,88220.0,88207.0,0.01133696]
[1767288048928,0.04891292,88220.0,88206.0,0.01133709]
[1767288049353,0.04891292,88220.0,88205.0,0.01133722]
[1767288049564,0.04891292,88220.0,88206.0,0.01133709]
[1767288049975,0.04891292,88220.0,88205.0,0.01133722]
[1767288050124,0.04891292,88220.0,88204.0,0.02273735]
[1767288050325,0.05278243,88220.0,88206.0,0.01133709]
[1767288050526,0.05278243,88220.0,88205.0,0.01133722]
[1767288050953,0.05278243,88220.0,88206.0,0.0114]
[1767288051157,0.05278243,88220.0,88207.0,0.01133696]
[1767288051361,0.05278243,88220.0,88206.0,0.02273709]
[1767288051559,0.05278243,88220.0,88207.0,0.01133696]
[1767288051745,0.05278243,88220.0,88206.0,0.02273709]
[1767288052120,0.05278243,88220.0,88206.0,0.01133709]
[1767288052332,0.05278243,88220.0,88206.0,0.02273709]
[1767288052557,0.05278243,88220.0,88206.0,0.0114]
[1767288052885,0.05278243,88220.0,88214.0,0.13648772]
[1767288053964,0.05313484,88220.0,88206.0,0.0114]
[1767288054266,0.05313484,88220.0,88206.0,0.01133709]
[1767288054626,0.05313484,88220.0,88207.0,0.01133696]
[1767288054853,0.05313484,88220.0,88206.0,0.01133709]
[1767288055386,0.05313484,88220.0,88205.0,0.01133722]
[1767288055793,0.05313484,88220.0,88206.0,0.01133709]
[1767288056400,0.0114,88219.0,88206.0,0.01133709]
[1767288056558,0.0114,88219.0,88205.0,0.01133722]
[1767288056757,0.04835019,88218.0,88206.0,0.01133709]
[1767288056975,0.04835019,88218.0,88205.0,0.01133722]
[1767288057194,0.04835019,88218.0,88206.0,0.01133709]
[1767288057492,0.04835019,88218.0,88207.0,0.01133696]
[1767288057795,0.0114,88219.0,88206.0,0.06005271]
[1767288057991,0.00315241,88220.0,88206.0,0.06005271]
[1767288058190,0.0114,88219.0,88206.0,0.06005271]
[1767288058429,0.0114,88219.0,88207.0,0.01133696]
[1767288058611,0.0114,88219.0,88213.0,0.13648772]
[1767288058985,0.010851,88219.0,88215.0,0.06005156]
[1767288059194,0.0114,88221.0,88218.0,0.01133555]
[1767288059399,0.00010582,88221.0,88218.0,0.01133555]
[1767288059818,0.00010582,88221.0,88218.0,0.05818314]
[1767288060218,0.00010582,88221.0,88218.0,0.04684759]
[1767288060622,0.00010582,88221.0,88218.0,0.05818314]
[1767288060974,0.0002654,88225.0,88222.0,0.0566752]
[1767288061105,0.04835019,88274.0,88255.0,0.04628219]
[1767288061306,0.01132733,88282.0,88262.0,0.0113299]
[1767288061307,0.04835019,88279.0,88262.0,0.0113299]
[1767288061550,0.04835019,88279.0,88267.0,0.01132926]
[1767288061746,0.00055,88267.0,88264.0,0.06797759]
[1767288061944,0.00055,88267.0,88263.0,0.01132977]
[1767288062278,0.03401732,88275.0,88265.0,0.06797688]
[1767288062471,0.05035019,88280.0,88266.0,0.01132939]
[1767288062677,0.04345419,88265.0,88247.0,0.04871562]
[1767288062876,0.04345419,88265.0,88254.0,0.01133093]
[1767288063018,0.04835019,88274.0,88255.0,0.0227308]
[1767288063223,0.04835019,88269.0,88256.0,0.0114]
[1767288063419,0.04835019,88265.0,88248.0,0.0113317]
[1767288063666,0.04835019,88259.0,88248.0,0.0227317]
[1767288063867,0.44290497,88260.0,88247.0,0.00010566]
[1767288063868,0.04835019,88257.0,88247.0,0.00010566]
[1767288064125,0.05968073,88257.0,88239.0,0.0114]
[1767288064368,0.04845577,88257.0,88243.0,0.01133234]
[1767288064567,0.05985577,88257.0,88242.0,0.01133247]
[1767288064738,0.05985577,88257.0,88241.0,0.0113326]
[1767288065162,0.05985577,88257.0,88240.0,0.01133272]
[1767288065361,0.04835019,88256.0,88239.0,0.02273285]
[1767288066548,0.04835019,88249.0,88239.0,0.0114]
[1767288066933,0.04835019,88249.0,88248.0,0.00051438]
[1767288067545,0.01150558,88257.0,88248.0,0.00051438]
[1767288067546,0.04835019,88256.0,88248.0,0.00051438]
[1767288067701,0.0114,88254.0,88248.0,0.00051438]
[1767288070122,0.04835019,88259.0,88248.0,0.00051438]
[1767288070322,0.05975019,88258.0,88248.0,0.00061996]
[1767288070887,0.0114,88257.0,88248.0,0.00061996]
[1767288071222,0.0114,88257.0,88250.0,0.01133144]
[1767288071409,0.0114,88257.0,88251.0,0.01133131]
[1767288071410,0.010851,88257.0,88251.0,0.01133131]
[1767288071813,0.010851,88257.0,88250.0,0.01133144]
[1767288072124,0.010851,88257.0,88251.0,0.01133131]
[1767288072553,0.0114,88256.0,88252.0,0.01133118]
[1767288072725,0.01085,88256.0,88252.0,0.01133118]
[1767288072925,0.01085,88256.0,88253.0,0.01133105]
[1767288073871,0.01085,88256.0,88252.0,0.01133118]
[1767288074046,0.01085,88256.0,88253.0,0.01133105]
[1767288074255,0.01085,88256.0,88252.0,0.01133118]
[1767288074451,0.01085,88256.0,88248.0,0.00061996]
[1767288074663,0.000549,88252.0,88248.0,0.00061996]
[1767288074863,0.000549,88252.0,88249.0,0.01133157]
[1767288075291,0.0114,88257.0,88250.0,0.01133144]
[1767288075959,0.0114,88257.0,88249.0,0.01133157]
[1767288076160,0.0114,88257.0,88250.0,0.01133144]
[1767288077071,0.0114,88257.0,88248.0,0.01195166]
[1767288077291,0.0105657,88256.0,88248.0,0.00061996]
[1767288077553,0.0105657,88255.0,88248.0,0.00061996]
[1767288077849,0.0114,88257.0,88248.0,0.00061996]
[1767288078001,0.01056613,88256.0,88248.0,0.00061996]
[1767288078199,0.01056613,88255.0,88248.0,0.00061996]
[1767288078397,0.01056828,88254.0,88248.0,0.00061996]
[1767288078642,0.0114,88257.0,88248.0,0.00061996]
[1767288078826,0.01056883,88256.0,88248.0,0.00061996]
[1767288079040,0.01056883,88255.0,88248.0,0.00061996]
[1767288079242,0.01056883,88254.0,88248.0,7.096e-05]
[1767288079403,0.01056883,88253.0,88248.0,7.096e-05]
[1767288079614,0.0114,88257.0,88248.0,7.096e-05]
[1767288079811,0.0105705,88256.0,88248.0,7.096e-05]
[1767288080006,0.0105705,88255.0,88248.0,7.096e-05]
[1767288080271,0.0105705,88254.0,88248.0,7.096e-05]
[1767288080546,0.0105705,88253.0,88249.0,0.04871562]
[1767288080875,0.0105705,88252.0,88249.0,0.04871562]
[1767288080995,0.0114,88257.0,88253.0,0.000549]
[1767288081194,0.01057237,88256.0,88253.0,0.000549]
[1767288081416,0.01057237,88255.0,88249.0,0.06004719]
[1767288081620,0.01057237,88254.0,88249.0,0.06004719]
[1767288081845,0.01057237,88253.0,88248.0,7.096e-05]
[1767288082040,0.01057237,88252.0,88248.0,0.01140266]
[1767288082277,0.0114,88257.0,88248.0,0.01140266]
[1767288082451,0.01057756,88256.0,88248.0,0.01140266]
[1767288082667,0.04904276,88285.0,88272.0,0.05664264]
[1767288082866,0.05662829,88296.0,88272.0,0.05664264]
[1767288082867,0.04904276,88289.0,88272.0,0.05664264]
[1767288083070,0.04904276,88287.0,88272.0,0.01132862]
[1767288083273,0.04904276,88287.0,88274.0,0.01132836]
[1767288083660,0.05940946,88304.0,88288.0,0.01132656]
[1767288083919,0.04690877,88302.0,88285.0,0.01132695]
[1767288084047,0.04690877,88299.0,88284.0,0.01132708]
[1767288084251,0.04690877,88299.0,88283.0,0.0114]
[1767288084887,0.04701441,88299.0,88281.0,0.01132746]
[1767288085136,0.04701441,88299.0,88281.0,0.02272746]
[1767288085277,1e-08,88304.0,88299.0,0.00035001]
[1767288085647,1e-08,88304.0,88301.0,0.0113249]
[1767288085852,0.01132182,88325.0,88301.0,0.0113249]
[1767288085853,1e-08,88308.0,88304.0,0.04639698]
[1767288086050,1e-08,88308.0,88299.0,0.01132515]
[1767288086203,1e-08,88308.0,88302.0,0.01132477]
[1767288086422,1e-08,88308.0,88303.0,0.01132464]
[1767288086685,1e-08,88308.0,88302.0,0.01132477]
[1767288086886,1e-08,88308.0,88301.0,0.0113249]
[1767288087232,1e-08,88308.0,88296.0,0.04639698]
[1767288087233,4.3e-05,88301.0,88296.0,0.04639698]
[1767288087448,0.04690877,88301.0,88291.0,0.02272618]
[1767288087635,0.04690877,88301.0,88291.0,0.01143182]
[1767288087937,0.0114,88304.0,88291.0,0.00010564]
[1767288088135,0.04690877,88303.0,88291.0,0.00010564]
[1767288088836,0.04690877,88303.0,88291.0,0.01143182]
[1767288089235,0.04690877,88303.0,88292.0,0.01132605]
[1767288089446,1e-08,88308.0,88295.0,0.01132566]
[1767288089620,0.0114,88306.0,88297.0,0.01132541]
[1767288089822,0.0114,88306.0,88297.0,0.05772239]
[1767288089998,0.0114,88306.0,88299.0,0.01132515]
[1767288090162,0.0114,88306.0,88298.0,0.05772226]
[1767288090868,0.0114,88306.0,88298.0,0.01132528]